{"text_format":"1","workbook":"xlsx","n_sheets":2,"sheets":["Kundeark","Eidsiva Nett"],"not_rendered":{"charts":0,"images":1,"macros":1,"external_links":0,"defined_names":1,"comments":0,"pivot_tables":0},"unopened":[],"bounds":{"document_bytes":16777216,"sheet_cells":100000,"rows_first":2000,"rows_last":500,"rows_between":2000,"halvings":0,"cell_chars":16384,"cell_head_chars":4096},"cells_cut":0,"cells_raw":0,"read":"whole","date_system":"1900"}

{"sheet":"Kundeark","index":0,"n_rows":37,"n_cols":15,"rows_kept":37,"cut":false,"hidden":false,"merged":[[29,0,29,3],[0,2,0,3],[2,1,9,1],[11,1,14,1],[16,1,19,1],[21,1,28,1],[2,0,4,0],[5,0,9,0],[1,0,1,3],[21,2,21,3],[26,2,26,3],[10,0,10,3],[37,0,37,3],[11,0,14,0],[16,0,19,0],[21,0,28,0],[30,0,36,0],[28,2,28,3],[30,2,30,3],[31,2,31,3],[32,2,32,3],[33,2,33,3],[34,2,34,3],[35,2,35,3],[36,2,36,3],[30,1,36,1],[15,0,15,3],[20,0,20,3]]}
[null,null,"Lavspennings produksjonsanlegg"]
[]
["Anleggets eier",null,{"$f":"IF($F$3=TRUE,\"Selskapsnavn\",(IF($F$4=TRUE,\"Etternavn\",\"\")))","v":""},null,null,false]
[null,null,{"$f":"IF($F$3=TRUE,\"Org.nr\",(IF($F$4=TRUE,\"Fornavn\",\"\")))","v":""},null,null,false,null,null,null,null,null,null,null,"Varierer med P",1]
[null,null,"Gatenavn",null,null,null,null,null,null,null,null,null,null,"= 1",2]
[null,null,"Postnr",null,null,null,null,null,null,null,null,null,"Induktiv","= 0,99",3]
[null,null,"Poststed",null,null,null,null,null,null,null,null,null,"Kapasitiv","= 0,98",4]
[null,null,"Kommune",null,null,null,null,null,null,null,null,null,null,"= 0,97",5]
[null,null,"Telefon",null,null,null,null,null,null,null,null,null,null,"= 0,96",6]
[null,null,"E-post",null,null,null,null,null,null,null,null,null,null,"= 0,95",7]
[null,null,null,null,null,null,null,null,null,null,null,null,null,"= 0,94",8]
["Leverandør/Montør",null,"Selskapsnavn",null,null,null,null,null,null,null,null,null,null,"= 0,93",9]
[null,null,"Kontaktperson",null,null,null,null,null,null,null,null,null,null,"= 0,92",10]
[null,null,"Telefon",null,null,null,null,null,null,null,null,null,null,"= 0,91",11]
[null,null,"E-post",null,null,null,null,null,null,null,null,null,null,"= 0,90",12]
[null,null,null,null,null,null,null,null,null,null,null,null,null,"= 0,89",13]
["Elektro-installatør",null,"Selskapsnavn",null,null,null,null,null,null,null,null,null,null,"= 0,88",14]
[null,null,"Kontaktperson",null,null,null,null,null,null,null,null,null,null,"= 0,87",15]
[null,null,"Telefon",null,null,null,null,null,null,null,null,null,null,"= 0,86",16]
[null,null,"Epost",null,null,null,null,null,null,null,null,null,null,"= 0,85",17]
[null,null,null,null,null,null,null,null,null,null,null,null,null,"= 0,84",18]
["System",null,"Nyinstallasjon eller utvidelse av eksisterende PV-anlegg",null,null,false,false,null,null,null,null,null,null,"= 0,83",19]
[null,null,"Total maksimal inverter ytelse [kVA] ",null,null,null,null,null,null,null,null,null,null,"= 0,82",20]
[null,null,"Total maksimal solcelle ytelse [kVA]",null,null,null,null,null,null,null,null,null,null,"= 0,82",20]
[null,null,"Produsent vekselretter",null,null,null,null,null,null,null,null,null,null,"= 0,81",21]
[null,null,"Produkttype vekselretter",null,null,null,null,null,null,null,null,null,null,"= 0,80",22]
[null,null,"1- eller 3-fase vekselrettere",null,null,false,false,null,null,null,null,null,null,"< 0,8",23]
[null,null,"Antall vekselrettere"]
[null,null,"Spenningssystem IT/TN",null,null,false,false]
[]
["Driftsforhold",null,"Øydriftsvern",null,null,false]
[null,null,"Regulering av reaktiv effekt (Innstilt cos(ϕ))",null,null,false,1,1,{"$f":"INDEX(N4:O27,G32,1)","v":"Varierer med P"},{"$f":"IF(H32=1,\"Induktiv\",\"Kapasitiv\")","v":"Induktiv"}]
[null,null,"Aktiv effektrespons",null,null,false,false]
[null,null,"Innstilt frekvensbånd for innkobling",null,null,false]
[null,null,"Innstilt frekvens for utkobling",null,null,false]
[null,null,"Spenningsbånd",null,null,false]
[null,null,"Krav til usymmetri overholdt",null,null,false]

{"sheet":"Eidsiva Nett","index":1,"n_rows":3,"n_cols":31,"rows_kept":3,"cut":false,"hidden":false,"merged":[[0,8,0,11],[0,0,0,7],[0,12,0,15],[0,16,0,22]]}
[{"$f":"Kundeark!A3","v":"Anleggets eier"},null,null,null,null,null,null,null,{"$f":"Kundeark!A12","v":"Leverandør/Montør"},null,null,null,{"$f":"Kundeark!A17","v":"Elektro-installatør"},null,null,null,{"$f":"Kundeark!A22","v":"System"}]
[{"$f":"Etternavn","v":""},{"$f":"Kundeark!C4","v":""},{"$f":"Kundeark!C5","v":"Gatenavn"},{"$f":"Kundeark!C6","v":"Postnr"},{"$f":"Kundeark!C7","v":"Poststed"},{"$f":"Kundeark!C8","v":"Kommune"},{"$f":"Kundeark!C9","v":"Telefon"},{"$f":"Kundeark!C10","v":"E-post"},{"$f":"Kundeark!C12","v":"Selskapsnavn"},{"$f":"Kundeark!C13","v":"Kontaktperson"},{"$f":"Kundeark!C14","v":"Telefon"},{"$f":"Kundeark!C15","v":"E-post"},{"$f":"Kundeark!C17","v":"Selskapsnavn"},{"$f":"Kundeark!C18","v":"Kontaktperson"},{"$f":"Kundeark!C19","v":"Telefon"},{"$f":"Kundeark!C20","v":"Epost"},{"$f":"Kundeark!C22","v":"Nyinstallasjon eller utvidelse av eksisterende PV-anlegg"},{"$f":"Kundeark!C24","v":"Total maksimal solcelle ytelse [kVA]"},{"$f":"Kundeark!C25","v":"Produsent vekselretter"},{"$f":"Kundeark!C26","v":"Produkttype vekselretter"},{"$f":"Kundeark!C27","v":"1- eller 3-fase vekselrettere"},{"$f":"Kundeark!C28","v":"Antall vekselrettere"},{"$f":"Kundeark!C29","v":"Spenningssystem IT/TN"},{"$f":"Kundeark!C31","v":"Øydriftsvern"},{"$f":"Kundeark!C32","v":"Regulering av reaktiv effekt (Innstilt cos(ϕ))"},"Kap./Ind.",{"$f":"Kundeark!C33","v":"Aktiv effektrespons"},{"$f":"Kundeark!C34","v":"Innstilt frekvensbånd for innkobling"},{"$f":"Kundeark!C35","v":"Innstilt frekvens for utkobling"},{"$f":"Kundeark!C36","v":"Spenningsbånd"},{"$f":"Kundeark!C37","v":"Krav til usymmetri overholdt"}]
[{"$f":"Kundeark!D3","v":0},{"$f":"Kundeark!D4","v":0},{"$f":"Kundeark!D5","v":0},{"$f":"Kundeark!D6","v":0},{"$f":"Kundeark!D7","v":0},{"$f":"Kundeark!D8","v":0},{"$f":"Kundeark!D9","v":0},{"$f":"Kundeark!D10","v":0},{"$f":"Kundeark!D12","v":0},{"$f":"Kundeark!D13","v":0},{"$f":"Kundeark!D14","v":0},{"$f":"Kundeark!D15","v":0},{"$f":"Kundeark!D17","v":0},{"$f":"Kundeark!D18","v":0},{"$f":"Kundeark!D19","v":0},{"$f":"Kundeark!D20","v":0},{"$f":"IF(Kundeark!F22,\"Nyinstallasjon\",\"Utvidelse\")","v":"Utvidelse"},{"$f":"Kundeark!D24","v":0},{"$f":"Kundeark!D25","v":0},{"$f":"Kundeark!D26","v":0},{"$f":"IF(Kundeark!F27,\"1-fase\",\"3-fase\")","v":"3-fase"},{"$f":"Kundeark!D28","v":0},{"$f":"IF(Kundeark!F29,\"IT\",\"TN\")","v":"TN"},{"$f":"IF(Kundeark!F31,\"OK\",\"IKKE OK\")","v":"IKKE OK"},{"$f":"Kundeark!I32","v":"Varierer med P"},{"$f":"Kundeark!J32","v":"Induktiv"},{"$f":"IF(Kundeark!F33,\"Ja\",\"Nei\")","v":"Nei"},{"$f":"IF(Kundeark!F34,\"OK\",\"IKKE OK\")","v":"IKKE OK"},{"$f":"IF(Kundeark!F35,\"OK\",\"IKKE OK\")","v":"IKKE OK"},{"$f":"IF(Kundeark!F36,\"OK\",\"IKKE OK\")","v":"IKKE OK"},{"$f":"IF(Kundeark!F37,\"OK\",\"IKKE OK\")","v":"IKKE OK"}]